Cogmind - Beta 9.6 @@@ ROGUE MODE // 2020.08.27 @ 22:55:25 Player: kerapace Result: Self-destructed Performance ------------- Evolutions (3) 1500 Regions Visited (7) 1400 Robots Destroyed (129) 645 Value Destroyed (3389) 3389 Prototype IDs (40) 800 Alien Tech Used (0) 0 Bonus (905) 905 TOTAL SCORE: 8639 Bonus ------- High Alert Combat Kills 459 Follower Combat Kills 280 Aligned with FarCom 300 Friendly Fire -134 Cogmind --------- Core Integrity 226/700 Matter 235/300 Energy 18/265 System Corruption 6% Temperature Cool (4) Movement Flying (34) Location -7/Factory Parts ------- > --- POWER (1) -------- Reinforced Ion Engine > --- PROPULSION (4) --- Improved Flight Unit Xenon Bombardment Thruster > --- UTILITY (6) ------ (None) > --- WEAPON (2) ------- (None) > --- INVENTORY (4) ---- Xenon Bombardment Thruster Improved Cooling System Advanced EMP Blaster Peak State ------------ > --- POWER ------------ Reinforced Ion Engine > --- PROPULSION ------- Light Treads Medium Treads Armored Huge Wheel > --- UTILITY ---------- Improved Cooling System Large Storage Unit High-capacity Storage Unit High-capacity Storage Unit Improved Medium Armor Plating Hardlight Generator > --- WEAPON ----------- Plasma Cannon Plasma Cannon > --- INVENTORY -------- Light Fission Core Improved Flight Unit Improved Flight Unit Xenon Bombardment Thruster Xenon Bombardment Thruster Improved Heat Sink Improved Cooling System Large Storage Unit High-capacity Matter Pod Advanced Weight Redist. System Experimental Sensor Array Advanced Terrain Scan Processor Matter Filter Cloak of Protection Hardened Medium Armor Plating System Shield Skeleton Box Chronowheel Beamcaster Advanced EMP Blaster Advanced EMP Blaster Advanced EMP Blaster Advanced EMP Blaster Missile Launcher Precision Rocket Launcher Katana [Rating: 48] Favorites ----------- Power Improved Ion Engine Engine Improved Ion Engine Power Core Light Fission Core Propulsion Light Treads Treads Light Treads Wheel Compact Wheel Flight Unit Improved Flight Unit Utility Large Storage Unit Device Improved Heat Sink Storage Large Storage Unit Processor Advanced Targeting Computer Protection Light Armor Plating Weapon Precision Beam Rifle Energy Gun Precision Beam Rifle Energy Cannon Plasma Cannon Ballistic Gun Heavy Assault Rifle Launcher Advanced EMP Blaster Slashing Weapon Katana Build | -11 -10 -10 -10 -9 -8 -8 -7 ------- Run | Scr Mat Min Exi Min Mat Sto Fac Slots Evolved 6 | . . . . . 4 . 2 Power . | . . . . . . . . Propulsion 2 | . . . . . 1 . 1 Utility 4 | . . . . . 3 . 1 Weapon . | . . . . . . . . Parts Attached 115 | 7 15 1 . . 16 37 39 Power 12 | 1 4 . . . 2 1 4 Engine 11 | 1 4 . . . 2 1 3 Core 1 | . . . . . . . 1 Reactor . | . . . . . . . . Propulsion 26 | 3 2 1 . . 3 11 6 Treads 17 | 1 1 . . . 2 10 3 Leg . | . . . . . . . . Wheel 6 | 2 1 1 . . 1 . 1 Hover . | . . . . . . . . Flight 3 | . . . . . . 1 2 Utility 21 | 1 2 . . . 4 3 11 Device 6 | . . . . . 2 . 4 Storage 6 | 1 2 . . . 1 . 2 Processor 1 | . . . . . . . 1 Hackware . | . . . . . . . . Protection 8 | . . . . . 1 3 4 Artifact . | . . . . . . . . Weapon 56 | 2 7 . . . 7 22 18 Energy Gun 27 | 2 3 . . . 6 16 . Energy Cannon 7 | . . . . . . . 7 Ballistic Gun 4 | . 4 . . . . . . Ballistic Cannon . | . . . . . . . . Launcher 12 | . . . . . 1 5 6 Special Weapon . | . . . . . . . . Impact Weapon . | . . . . . . . . Slashing Weapon 6 | . . . . . . 1 5 Piercing Weapon . | . . . . . . . . Special Melee Weapon . | . . . . . . . . Unidentified Prototypes 7 | . . . . . 2 4 1 Parts Lost 22 | . 4 1 . . 1 2 14 Power 2 | . . . . . 1 . 1 Propulsion 6 | . 1 1 . . . 1 3 Utility 3 | . . . . . . . 3 Weapon 11 | . 3 . . . . 1 7 Highest Loss Streak 10 | . 2 1 . . 1 1 10 Average Slot Usage (%) 93 | . 92 99 100 100 91 98 87 Engine 10 | . 14 14 14 14 9 8 6 Treads 17 | . 13 14 14 14 18 18 21 Wheel 9 | . 14 13 14 14 9 8 3 Device 5 | . . . . . 9 9 8 Storage 24 | . 21 28 28 28 23 27 22 Protection 4 | . . . . . 3 8 6 Energy Gun 8 | . 9 . . . 11 16 3 Energy Cannon 2 | . . . . . . . 8 Ballistic Gun 8 | . 18 28 28 28 6 . . Naked Turns 3 | . . . . . . . 3 Heaviest Build 121 | 10 59 59 59 59 79 85 121 Greatest Support 80 | 16 20 20 16 20 40 60 80 Greatest Overweight (x) 7 | . 4 3 3 3 6 7 4 Average Overweight (x) 3 | . 1 2 3 2 3 5 2 Largest Inventory Capacity 26 | 6 18 18 18 18 24 24 26 Average Capacity 20 | 5 10 18 18 18 21 24 25 Most Carried 26 | 4 14 14 18 18 24 24 26 Average Carried 19 | 1 8 13 15 18 20 23 24 Final Capacity 24 | 6 18 18 18 18 24 24 4 Final Carried 24 | 3 14 13 18 18 24 24 3 Class Distribution -------------------- 43% | Hauler-Mutant 40% | Mutant 15% | Scavenger-Mutant Dominant Class ---------------- Mutant | -10/Materials Mutant | -10/Mines Mutant | -10/Exiles Mutant | -9/Mines Hauler-Mutant | -8/Materials Scavenger-Mutant | -8/Storage Hauler-Mutant | -7/Factory Resources | -11 -10 -10 -10 -9 -8 -8 -7 ----------- Run | Scr Mat Min Exi Min Mat Sto Fac Matter Collected 1772 | 270 183 77 . 84 297 391 470 Remotely . | . . . . . . . . Salvage Created 4658 | . 474 135 . 161 460 1446 1982 Parts 273 | . 32 16 . 11 30 80 104 Haulers Intercepted 13 | . 1 . . . 3 6 3 Recyclers Shooed 1 | . . . . . . 1 . Parts Field Recycled . | . . . . . . . . Retrieved Matter . | . . . . . . . . Parts Self-Destructed . | . . . . . . . . Prevented . | . . . . . . . . Kills | -11 -10 -10 -10 -9 -8 -8 -7 ------- Run | Scr Mat Min Exi Min Mat Sto Fac Combat Hostiles Destroyed 84 | . 12 6 . 4 9 22 31 Melee 2 | . . . . . . . 2 Guns 44 | . 12 6 . 4 6 16 . Cannons 17 | . . . . . . . 17 AOE 19 | . . . . . 3 5 11 Classes Destroyed 14 | . 3 2 . 1 2 5 1 Worker 16 | . . . . 1 6 1 8 Builder 7 | . . 1 . . . 1 5 Tunneler 2 | . . 1 . 1 . . . Hauler 13 | . 1 . . . 3 6 3 Recycler 1 | . . . . . . 1 . Mechanic 1 | . . . . . . 1 . Operator 1 | . . . . . . 1 . Watcher 3 | . . . . . 1 1 1 Swarmer 25 | . 3 6 . 3 6 4 3 Grunt 37 | . 9 . . 2 1 10 15 Duelist 2 | . . . . . . 1 1 Sentry 14 | . . . . . 2 6 6 Hunter 3 | . . . . . . 1 2 Programmer 4 | . . . . . . . 4 Best Kill Streak 12 | . 3 3 . 2 8 5 12 Combat Bots Only 9 | . 3 3 . 2 4 4 9 Max Kills in Single Turn 4 | . 1 1 . 1 3 4 3 Gunslinging 1 | . . . . . 1 . . Exploded 3 | . . . . . 2 3 1 Melee 1 | . . . . . . . 1 Uniques/NPCs Destroyed . | . . . . . . . . Combat | -11 -10 -10 -10 -9 -8 -8 -7 -------- Run | Scr Mat Min Exi Min Mat Sto Fac Damage Taken 5124 | . 750 91 . 126 311 709 3137 Core 784 | . 131 9 . 32 48 90 474 Absorbed by Shields 69 | . . . . . . . 69 Core Remaining (%) 68 | 100 . . . 31 . 74 . Volleys Fired 287 | . 55 12 . 15 32 84 89 Largest 2 | . 2 2 . 2 2 2 2 Hottest 160 | . 90 46 . 46 122 136 160 Shots Fired 530 | . 108 24 . 30 60 152 156 Gun 393 | . 108 24 . 30 56 145 30 Cannon 104 | . . . . . . . 104 Launcher 33 | . . . . . 4 7 22 Special . | . . . . . . . . Kinetic 121 | . 39 24 . 30 28 . . Thermal 368 | . 69 . . . 26 139 134 Explosive 8 | . . . . . 4 1 3 Electromagnetic 33 | . . . . . 2 12 19 Robot Hit Streak 31 | . 13 7 . 3 14 31 21 Robot Miss Streak 3 | . 3 1 . 3 3 3 2 Penetration Max . | . . . . . . . . Secondary Targets 5 | . 2 . . . 2 1 . Max Gunslinging Chain 1 | . 1 . . . 1 1 . Shots Hit Robots 370 | . 72 14 . 13 39 107 125 Core Hits 190 | . 29 8 . 7 24 51 71 Critical Hits 3 | . . . . . . . 3 Critical Kills 1 | . . . . . . . 1 Critical Parts Destroyed 2 | . . . . . . . 2 Melee Attacks 14 | . . . . . . 2 12 Impact . | . . . . . . . . Slashing 14 | . . . . . . 2 12 Piercing . | . . . . . . . . Sneak Attacks . | . . . . . . . . Combat Hostiles . | . . . . . . . . Follow-up Attacks . | . . . . . . . . Damage Inflicted 9481 | . 786 203 . 230 867 2475 4920 Guns 4159 | . 786 203 . 230 579 1841 520 Cannons 1966 | . . . . . . . 1966 Explosions 3110 | . . . . . 288 606 2216 Melee 240 | . . . . . . 28 212 Ramming 6 | . . . . . . . 6 Kinetic 920 | . 240 203 . 230 247 . . Thermal 5421 | . 546 . . . 300 1862 2713 Explosive 975 | . . . . . 288 256 431 Electromagnetic 1919 | . . . . . 32 329 1558 Impact . | . . . . . . . . Slashing 240 | . . . . . . 28 212 Piercing . | . . . . . . . . Highest Corruption 6 | . . . . . . . 6 Average Corruption 3 | . . . . . . . 3 Corruption Purged . | . . . . . . . . Effects 29 | . . . . . . . 29 Message Errors 6 | . . . . . . . 6 Matter Fused 8 | . . . . . . . 8 Heat Flow Errors 4 | . . . . . . . 4 Energy Discharges 1 | . . . . . . . 1 Parts Rejected 1 | . . . . . . . 1 Data Loss (minor) 2 | . . . . . . . 2 Misfires 1 | . . . . . . . 1 Targeting Errors 6 | . . . . . . . 6 Overload Shots . | . . . . . . . . Overflow Damage 155 | . . . . . . 21 134 Projectiles 51 | . . . . . . . 51 Explosions 104 | . . . . . . 21 83 Melee . | . . . . . . . . Knockbacks . | . . . . . . . . Impact . | . . . . . . . . Kinetic . | . . . . . . . . Secondary . | . . . . . . . . Self-Inflicted Damage 160 | . . . . . . . 160 Shots 9 | . . . . . . . 9 Rammed 2 | . . . . . . . 2 Targets Rammed 2 | . . . . . . . 2 Kicked . | . . . . . . . . Crushed . | . . . . . . . . Highest Temperature 290 | . 290 . . 1 27 87 237 Average Temperature 44 | . 80 . . 1 16 22 38 Received Heat Transfer 1423 | . 303 . . 36 81 252 751 Siege Activations . | . . . . . . . . Robots Corrupted 1 | . . . . . . . 1 Combat Hostiles 1 | . . . . . . . 1 Parts Fried 5 | . . . . . . 1 4 Impact Corruptions . | . . . . . . . . Robots Melted 1 | . . . . . . 1 . Combat Hostiles 1 | . . . . . . 1 . Parts Melted 31 | . 5 . . . 6 10 10 Heat Transferred 10948 | . 1439 . . . 666 4046 4797 Parts Sabotaged . | . . . . . . . . Parts Stolen . | . . . . . . . . Parts Stripped . | . . . . . . . . Power Chain Reactions 3 | . . . . . . 1 2 Missiles Intercepted . | . . . . . . . . Alert | -11 -10 -10 -10 -9 -8 -8 -7 ------- Run | Scr Mat Min Exi Min Mat Sto Fac Peak Influence 718 | . 290 162 . 298 480 634 718 Average Influence 314 | . 82 109 . 177 292 465 429 Maximum Alert Level 3 | . 1 . . 1 2 2 3 Low Security (%) 2 | 100 90 100 . 73 27 1 . Level 1 42 | . 9 . . 26 68 5 49 Level 2 53 | . . . . . 4 92 48 Level 3 1 | . . . . . . . 2 Level 4 . | . . . . . . . . Level 5 . | . . . . . . . . High Security . | . . . . . . . . Max Security . | . . . . . . . . Squads Dispatched 15 | . 1 . . . 1 3 10 Investigation 3 | . . . . . 1 1 1 Extermination 3 | . . . . . . . 3 Reinforcement 8 | . 1 . . . . 2 5 Assault . | . . . . . . . . Garrison 1 | . . . . . . . 1 Intercept . | . . . . . . . . Construction Impeded 4 | . . . . . . 1 3 Haulers Reinforced 2 | . . . . . . . 2 Stealth | -11 -10 -10 -10 -9 -8 -8 -7 --------- Run | Scr Mat Min Exi Min Mat Sto Fac Distress Signals 5 | . . . . . 1 1 3 Communications Jammed . | . . . . . . . . Distress Signals . | . . . . . . . . Times Spotted 134 | . 20 6 . 9 17 31 51 Peak Tracking Total 7 | . 5 3 . 3 7 5 7 Tactical Retreats 8 | . . . . . . . 8 Traps | -11 -10 -10 -10 -9 -8 -8 -7 ------- Run | Scr Mat Min Exi Min Mat Sto Fac Traps Triggered 12 | . 1 . . . . 7 4 Indirectly . | . . . . . . . . Trap Hack Attempts . | . . . . . . . . Triggered . | . . . . . . . . Disarmed . | . . . . . . . . Reprogrammed . | . . . . . . . . Reused . | . . . . . . . . Traps Extracted . | . . . . . . . . Installed . | . . . . . . . . Triggered . | . . . . . . . . Machines | -11 -10 -10 -10 -9 -8 -8 -7 ---------- Run | Scr Mat Min Exi Min Mat Sto Fac Machines Disabled 11 | . . 1 . 1 . 7 2 Max in Single Turn 1 | . . 1 . . . 1 1 Garrison Access 1 | . . . . . . . 1 Machines Sabotaged . | . . . . . . . . Garrisons Compromised . | . . . . . . . . Overloaded Fab Kills . | . . . . . . . . Fab Network Shutdowns . | . . . . . . . . Hacking | -11 -10 -10 -10 -9 -8 -8 -7 --------- Run | Scr Mat Min Exi Min Mat Sto Fac Machines Accessed 26 | . 4 . 1 1 3 10 7 Terminals 20 | . 4 . . 1 2 9 4 Fabricators . | . . . . . . . . Repair Stations 1 | . . . . . . 1 . Recycling Units . | . . . . . . . . Scanalyzers 2 | . . . . . 1 . 1 Garrison Access 2 | . . . . . . . 2 Total Hacks 55 | . 7 . 1 3 11 20 13 Successful 34 | . 6 . 1 1 6 11 9 Failed 21 | . 1 . . 2 5 9 4 Catastrophic 4 | . . . . . . 2 2 Database Lockouts . | . . . . . . . . Manual 16 | . 1 . 1 3 2 4 5 Terminals 39 | . 7 . . 3 4 18 7 Fabricators . | . . . . . . . . Repair Stations 2 | . . . . . . 2 . Recycling Units . | . . . . . . . . Scanalyzers 10 | . . . . . 7 . 3 Garrison Access 3 | . . . . . . . 3 Terminal Hacks 19 | . 6 . 1 1 2 6 3 Record 1 | . 1 . . . . . . Part Schematic 2 | . . . . 1 . . 1 Prototype ID Bank 5 | . 2 . . . 1 2 . Open Door 3 | . . . . . . 3 . Branch Access Points 1 | . 1 . . . . . . Fabricator Index 1 | . . . . . . . 1 Scanalyzer Index 1 | . . . . . . . 1 Alert Level 1 | . 1 . . . . . . Hauler Manifests 3 | . 1 . . . 1 1 . EX-Prototype ID Bank 1 | . . . 1 . . . . Fabricator Hacks . | . . . . . . . . Repair Station Hacks 2 | . . . . . . 2 . Scan Component 1 | . . . . . . 1 . Repair 1 | . . . . . . 1 . Recycling Unit Hacks . | . . . . . . . . Scanalyzer 7 | . . . . . 4 . 3 Insert Component 3 | . . . . . 2 . 1 Analyze 4 | . . . . . 2 . 2 Garrison Access Hacks 1 | . . . . . . . 1 Seal Access 1 | . . . . . . . 1 Unauthorized Hacks 5 | . . . . . . 3 2 Terminals 5 | . . . . . . 3 2 Botnet 5 | . . . . . . 3 2 Fabricators . | . . . . . . . . Repair Stations . | . . . . . . . . Recycling Units . | . . . . . . . . Scanalyzers . | . . . . . . . . Garrison Access . | . . . . . . . . Data Cores Recovered 1 | . . . . . . 1 . Used . | . . . . . . . . Hacking Detections 19 | . 2 . . . 3 8 6 Full Trace Events 4 | . . . . . 2 1 1 Feedback Events . | . . . . . . . . Feedback Blocked . | . . . . . . . . Robot Schematics Acquired . | . . . . . . . . Robots Built . | . . . . . . . . Matter . | . . . . . . . . Time . | . . . . . . . . Total Robot Build Rating . | . . . . . . . . Part Schematics Acquired 4 | . . . . 1 2 . 1 Parts Built . | . . . . . . . . Matter . | . . . . . . . . Time . | . . . . . . . . Total Part Build Rating . | . . . . . . . . Parts Repaired 1 | . . . . . . 1 . Time 70 | . . . . . . 70 . Parts Recycled . | . . . . . . . . Recycled Matter . | . . . . . . . . Retrieved Matter . | . . . . . . . . Retrieved Components . | . . . . . . . . Parts Scanalyzed 3 | . . . . . 2 . 1 Part Schematics Acquired 2 | . . . . . 2 . . Parts Damaged 1 | . . . . . 1 . . Bothacking | -11 -10 -10 -10 -9 -8 -8 -7 ------------ Run | Scr Mat Min Exi Min Mat Sto Fac Used RIF Installer . | . . . . . . . . Robots Hacked . | . . . . . . . . Non-combat . | . . . . . . . . Combat . | . . . . . . . . Robot Hacks Applied . | . . . . . . . . Relay Couplers Released . | . . . . . . . . Robots Rewired . | . . . . . . . . Allies Hacked . | . . . . . . . . Hacks Repelled . | . . . . . . . . Allies | -11 -10 -10 -10 -9 -8 -8 -7 -------- Run | Scr Mat Min Exi Min Mat Sto Fac Total Allies 7 | . . 3 . 1 . 3 . Largest Group 4 | . . 3 3 3 3 4 . Highest-Rated Group 109 | . . 40 40 63 63 109 . Highest-Rated Ally 31 | . . 16 16 31 31 31 . Total Orders . | . . . . . . . . Ally Attacks 101 | . . . . 26 35 40 . Total Damage 1237 | . . . . 336 363 538 . Kills 21 | . . . . 6 7 8 . Allies Corrupted . | . . . . . . . . Allies Melted . | . . . . . . . . Intel | -11 -10 -10 -10 -9 -8 -8 -7 ------- Run | Scr Mat Min Exi Min Mat Sto Fac Robot Analysis Total . | . . . . . . . . Derelict Logs Recovered 2 | . . 1 . 1 . . . Drone Launches . | . . . . . . . . Drone Recoveries . | . . . . . . . . Exploration | -11 -10 -10 -10 -9 -8 -8 -7 ------------- Run | Scr Mat Min Exi Min Mat Sto Fac Turns Passed 6607 | 56 1191 459 299 395 764 1688 1755 Spaces Moved 3832 | 51 877 323 226 252 409 857 837 Core 14 | 8 4 . . . . . 2 Treads 877 | . 44 1 . 24 134 175 499 Legs . | . . . . . . . . Wheels 2910 | 43 829 322 226 228 275 682 305 Hover . | . . . . . . . . Flight 31 | . . . . . . . 31 Fastest Speed 34 | 50 80 130 130 130 130 150 34 Average Speed 141 | 76 111 130 130 136 154 156 161 Slowest Speed 240 | 100 200 200 130 200 180 220 240 Overloaded Moves . | . . . . . . . . Propulsion Burnouts . | . . . . . . . . Robots Hopped . | . . . . . . . . Cave-ins Triggered . | . . . . . . . . Exploration Rate (%) 58 | 3 93 82 60 84 30 88 30 Regions Visited 7 Branch Regions 4 Pre-discovered Areas 1 | . . . . . . 1 . Known Exits Taken 2 | . 1 1 . . . . . Unknown Exits Taken 5 | 1 . . 1 1 1 1 . Scrap Searched 4 | . . 2 . 2 . . . Spaces Dug 31 | . . . . . 11 18 2 Terrain Destroyed 84 | . . . . . 30 18 36 Melee 3 | . . . . . . 1 2 Projectile 1 | . . . . . . . 1 AOE 80 | . . . . . 30 17 33 Actions | -11 -10 -10 -10 -9 -8 -8 -7 --------- Run | Scr Mat Min Exi Min Mat Sto Fac Total 4485 | 64 997 337 231 273 479 1043 1061 Wait 109 | 4 25 2 1 3 5 26 43 Move 3825 | 50 876 322 225 251 408 856 837 Hop . | . . . . . . . . Pick Up 59 | 3 16 . 5 2 10 7 16 Fast Attach 34 | 5 1 . . . 5 16 7 Attach 25 | 1 4 1 . . 4 2 13 Detach 4 | . . . . . 1 3 . Swap 57 | 1 10 . . . 7 19 20 Drop 56 | . 10 . . 2 7 20 17 Fire 287 | . 55 12 . 15 32 84 89 Melee 14 | . . . . . . 2 12 Ram 2 | . . . . . . . 2 Kick . | . . . . . . . . Crush . | . . . . . . . . Escape Stasis 13 | . . . . . . 8 5 Rewire . | . . . . . . . . Trap . | . . . . . . . . Miscellaneous . | . . . . . . . . Route ------- -11/Scrapyard -10/Materials (discovered 5 exits: [*Mat x3] / *Min x2) -10/Mines (discovered 2 exits: [*Mat] / *Exi) -10/Exiles -9/Mines -8/Materials -8/Storage -7/Factory (discovered 1 exit: [*Fac]) History --------- Turn | Location | Event 24 | -11/Scrapyard | Discovered new exit (range 16) 57 | -11/Scrapyard | Entered Materials 307 | -10/Materials | Discovered new exit (range 15) 308 | -10/Materials | Build established: Mutant 396 | -10/Materials | Identified exit to Mines 470 | -10/Materials | Discovered new exit (range 6) 530 | -10/Materials | Core integrity fell below 50% 626 | -10/Materials | Discovered new exit (range 5) 1248 | -10/Materials | Entered Mines 1373 | -10/Mines | Discovered new exit (range 7) 1483 | -10/Mines | Assisted by bots powering up and referring to "LRC-V3" 1563 | -10/Mines | Identified exit to Exiles 1698 | -10/Mines | Deemed a non-threat by the Exiles lab entrance 1707 | -10/Mines | Entered Exiles 1707 | -10/Exiles | Accompanied by 3 allies 1741 | -10/Exiles | Met 8R-AWN 1762 | -10/Exiles | Met EX-HEX 1797 | -10/Exiles | Met EX-BIN 1812 | -10/Exiles | Aligned with FarCom system 1814 | -10/Exiles | Given EX-Vault access code 1844 | -10/Exiles | Opened EX-Vault 1851 | -10/Exiles | Found Cloak of Protection 1854 | -10/Exiles | Found Chronowheel 1859 | -10/Exiles | Found Skeleton Box 1887 | -10/Exiles | Warned to stay clear of 0b10 Research branches 1926 | -10/Exiles | Met EX-DEC 1995 | -10/Exiles | Discovered new exit (range 10) 2006 | -10/Exiles | Stole three prototypes: Cloak of Protection, Skeleton Box, Chronowheel 2006 | -10/Exiles | Entered Mines 2006 | -9/Mines | Accompanied by 3 allies 2082 | -9/Mines | Found a damaged Exp. Sensor Array with a note attached 2088 | -9/Mines | Found Prototype Device 2141 | -9/Mines | Learned Materials trap positions 2206 | -9/Mines | Received a Mining Laser from a helpful Derelict 2226 | -9/Mines | Received a Rocket Launcher from a helpful Derelict 2384 | -9/Mines | Discovered new exit (range 11) 2401 | -9/Mines | Entered Materials 2401 | -8/Materials | Accompanied by 3 allies 2401 | -8/Materials | Evolved 4 slots: Propulsion x1, Utility x3 2402 | -8/Materials | Loaded intel: 13 trap records 2402 | -8/Materials | Discovered new exit (range 8) 2959 | -8/Materials | Build established: Hauler-Mutant 3042 | -8/Materials | Identified Exp. Sensor Array 3165 | -8/Materials | Entered Storage 3165 | -8/Storage | Accompanied by 1 ally 3335 | -8/Storage | Repaired Broken Lgt. Fission Core? 3414 | -8/Storage | Allied Derelicts emerged from ambush trap array 3619 | -8/Storage | Build established: Scavenger-Mutant 3674 | -8/Storage | Discovered new exit (range 16) 4441 | -8/Storage | Learned location of Armory (-4) 4460 | -8/Storage | Found Prototype Launcher 4460 | -8/Storage | Identified Gui. Missile Launcher 4636 | -8/Storage | Build established: Hauler-Mutant 4853 | -8/Storage | Entered Factory 4853 | -7/Factory | Evolved 2 slots: Propulsion x1, Utility x1 4855 | -7/Factory | FarCom data flow suspended 5831 | -7/Factory | Discovered new exit (range 10) 5862 | -7/Factory | Destroyed 9 combat bots 6446 | -7/Factory | Lost 3 parts (1n1u1w) 6530 | -7/Factory | Garrison activated, responded to threat 6577 | -7/Factory | Released all parts (6) 6578 | -7/Factory | Core integrity fell below 50% 6607 | -7/Factory | Lost 10 parts (1p2n2u5w) 6608 | -7/Factory | Self-destructed Last Messages --------------- 06575_ Adv. EMP Blaster destroyed. 06576_ Katana destroyed. 06577_ R-06 Scavenger destroyed. 06577_ R-06 Scavenger collects Flak Gun. 06577_ U-05 Engineer lays Concrete. 06577_ Released Adv. Targeting Computer. 06577_ Released Imp. Cooling System. 06577_ Released Lrg. Storage Unit. 06577_ Released Hcp. Storage Unit. 06577_ Released Rnf. Ion Engine. 06577_ Slammed into Y-54 Guardian. 06578_ U-05 Engineer lays Concrete. 06578_ Slammed into Y-54 Guardian. 06578_ Y-54 Guardian destroyed. 06579_ U-05 Engineer lays Concrete. 06580_ Acquired Imp. Flight Unit. 06582_ Acquired Xenon Bombardment Thruster. 06584_ Dropped Axe. 06584_ Acquired Rnf. Ion Engine. 06587_ U-05 Engineer lays Concrete. Map ----- +----------------------------------------------------+ | ?????????????????????????????????????????????????? | | ?????????????????????????????????????????????????? | | ?????????????????????????????????????????????????? | | ???????????????????????????????????????? ????????? | | ?????????????????????????????????????###/####????? | | ?????????????????????????????????????# ?????? | | ?????????????????????????????????????# ?????? | | ?????????????????????????????????????# ?????? | | ???????????????????????????????????### ????? | | ???????????????????????????????????? ##+#### | | ?????????????????????????????????????# # | | ?????????????????????????????????????# # | | ??????????????????????##?????????????# # ] | | ?????????????????????? ?????????????# # ! | | ??????????????????????" ??????#""???# # % | | ??????????????????# "R ????? #""???# + !! | | ??????????????????# """ ???? #"S ??# # = ! | | ??????????????????# """ """ !#"""??# # =/ | | ??????????????????# # "" ?# # !! | | ??????????????????# """ # ?# ####### | | ??????????????????# ==! """ # # #?????? | | ??????????????????# =!! """ # """ # #?????? | | ??????????????????? =!! # """ + #?????? | | ????????????????????? ?# """ # #?????? | | ??????????????????????? ???# # #?????? | | ??????????????????#######@############ #?????? | | ??????????? #?????? | | ??????????? #?????? | | ??????????? #?????? | | ???????????? #?????? | | ???????????? #?????? | | ?????????????## ######+########### #?????? | | ??????????????# ?????????????????# #?????? | | ??????????????# ??????????????????# ????? | | ??????????????# ???????????????????# ???? | | ??????????????# ????????????????????# ??? | | ??????????????# ?????????????????????# ?? | | ?????????????????????????????????????# ? | | ?????????????????????????????????????# ###+##? | | ?????????????????????????????????????# #?????? | | ?????????????????????????????????????# #?????? | | ?????????????????????????????????????# #?????? | | ?????????????????????????????????????# +?????? | | ?????????????????????????????????????? ^ #?????? | | ?????????????????????????????????????? ^ #?????? | | ??????????????????????????????????????# #?????? | | ??????????????????????????????????????# #?????? | | ??????????????????????????????????????# ??????? | | ??????????????????????????????????????# #??????? | | ??????????????????????????????????????# #??????? | +----------------------------------------------------+ Best States ------------- Heat Dissipation 61 Energy Generation 18 Energy Capacity 265 Matter Stores 300 Matter Capacity 300 Sight Range 16 Terrain Scan Density 10 Armor Coverage 600 Evasion (%) 63 Targeting Accuracy 8 Recoil Reduction 4 Item Schematics ----------------- Hcp. Storage Unit | -9/Mines | Hacked Exp. Sensor Array | -8/Materials | Scanalyzed Lgt. Fission Core | -8/Materials | Scanalyzed Angular Momentum Engine | -7/Factory | Hacked Robot Schematics ------------------ None Fabricated ------------ Nothing Alien Tech Used ----------------- None Achievements -------------- None Challenges ------------ None Game ------ Seed ReactiveDirtyDerivative Manual? 0 Play Time 01:15:13 Cumulative 369.8 hours Start 2020.08.27 @ 01:47:05 End 2020.08.27 @ 22:55:25 Sessions 11 Manual Loads 0 Difficulty Rogue Special Mode None Game No. 278 Rogue 278 Adventurer 0 Explorer 0 Win Type - Total 11 Types 10/0/0/1/0/0/0 Lore% 77 Gallery% 77 Achievement% 63 Wizard Run 0 Options --------- ASCII 0 Keyboard 0 Movement Arrows Keybinds 0 Fullscreen 0 Font 16/SmallcapsGlow Map View 76x50 Tactical HUD 1 Map Filters NONE Filters NONE Steam 1 RUN: 4e84f13e-6ae9-47e9-912c-469d8c873111